fUST/lending_fUST_20250718
["ID","MTS","AMOUNT","RATE_DAILY","PERIOD"]
[372946985,1752817835046,-482.52503496,0.00016438,2]
[372946986,1752817835056,-500.0,0.00016438,2]
[372946987,1752817835065,-460.0,0.00016438,2]
[372946988,1752817835075,-500.0,0.00016438,2]
[372946989,1752817835084,-460.0,0.00016438,2]
[372946990,1752817835094,-2754.43,0.00016438,2]
[372946991,1752817835103,-1156.33,0.00016438,2]
[372946992,1752817835113,-460.0,0.00016438,2]
[372946993,1752817835123,-1786.69,0.00016438,2]
[372946994,1752817835132,-460.0,0.00016438,2]
[372946995,1752817835141,-460.0,0.00016438,2]
[372946996,1752817835152,-460.0,0.00016438,2]
[372946997,1752817835162,-460.0,0.00016438,2]
[372946998,1752817835171,-460.0,0.00016438,2]
[372946999,1752817835181,-460.0,0.00016438,2]
[372947000,1752817835190,-460.0,0.00016438,2]
[372947001,1752817835200,-166.73359816,0.00016438,2]
[372947002,1752817835210,-460.0,0.00016438,2]
[372947003,1752817835220,-460.0,0.00016438,2]
[372947004,1752817835229,-247.0879294,0.00016438,2]
[372947005,1752817835239,-460.0,0.00016438,2]
[372947006,1752817835248,-688.88,0.00016438,2]
[372947007,1752817835258,-460.0,0.00016438,2]
[372947008,1752817835267,-460.0,0.00016438,2]
[372947009,1752817835277,-460.0,0.00016438,2]
[372947010,1752817835286,-460.0,0.00016438,2]
[372947011,1752817835296,-460.0,0.00016438,2]
[372947012,1752817835305,-479.92,0.00016438,2]
[372947013,1752817835315,-431.33258806,0.00016438,2]
[372947014,1752817835325,-3471.04,0.00016438,2]
[372947015,1752817835335,-460.0,0.00016438,2]
[372947016,1752817835345,-501.1,0.00016438,2]
[372947017,1752817835354,-460.0,0.00016438,2]
[372947018,1752817835364,-473.09,0.00016438,2]
[372947019,1752817835374,-460.0,0.00016438,2]
[372947020,1752817835384,-715.09,0.00016438,2]
[372947021,1752817835395,-460.0,0.00016438,2]
[372947022,1752817835405,-460.0,0.00016438,2]
[372947023,1752817835415,-460.0,0.00016438,2]
[372947024,1752817835425,-460.0,0.00016438,2]
[372947025,1752817835435,-773.33,0.00016438,2]
[372947026,1752817835444,-460.0,0.00016438,2]
[372947027,1752817835453,-460.0,0.00016438,2]
[372947028,1752817835463,-460.0,0.00016438,2]
[372947029,1752817835472,-460.0,0.00016438,2]
[372947030,1752817835481,-460.0,0.00016438,2]
[372947031,1752817835490,-477.38401332,0.00016438,2]
[372947032,1752817835500,-2093.69,0.00016438,2]
[372947033,1752817835510,-460.0,0.00016438,2]
[372947034,1752817835519,-328.59835396,0.00016438,2]
[372947035,1752817835529,-745.39,0.00016438,2]
[372947036,1752817835538,-460.0,0.00016438,2]
[372947037,1752817835548,-998.27,0.00016438,2]
[372947038,1752817835558,-597.53,0.00016438,2]
[372947039,1752817835572,-460.0,0.00016438,2]
[372947040,1752817835582,-460.0,0.00016438,2]
[372947041,1752817835592,-460.0,0.00016438,2]
[372947042,1752817835602,-460.0,0.00016438,2]
[372947043,1752817835611,-460.0,0.00016438,2]
[372947044,1752817835621,-460.0,0.00016438,2]
[372947045,1752817835630,-460.0,0.00016438,2]
[372947046,1752817835639,-460.0,0.00016438,2]
[372947047,1752817835650,-460.0,0.00016438,2]
[372947048,1752817835659,-460.0,0.00016438,2]
[372947049,1752817835669,-1220.96,0.00016438,2]
[372947050,1752817835678,-460.0,0.00016438,2]
[372947051,1752817835688,-460.0,0.00016438,2]
[372947052,1752817835697,-460.0,0.00016438,2]
[372947053,1752817835707,-460.0,0.00016438,2]
[372947054,1752817835716,-460.0,0.00016438,2]
[372947055,1752817835726,-460.0,0.00016438,2]
[372947056,1752817835735,-460.0,0.00016438,2]
[372947057,1752817835745,-460.0,0.00016438,2]
[372947058,1752817835755,-460.0,0.00016438,2]
[372947059,1752817835764,-460.0,0.00016438,2]
[372947060,1752817835773,-460.0,0.00016438,2]
[372947061,1752817835783,-460.0,0.00016438,2]
[372947062,1752817835792,-460.0,0.00016438,2]
[372947063,1752817835801,-460.0,0.00016438,2]
[372947064,1752817835811,-460.0,0.00016438,2]
[372947065,1752817835821,-460.0,0.00016438,2]
[372947066,1752817835833,-460.0,0.00016438,2]
[372947067,1752817835843,-460.0,0.00016438,2]
[372947068,1752817835852,-460.0,0.00016438,2]
[372947069,1752817835861,-460.0,0.00016438,2]
[372947070,1752817835870,-460.0,0.00016438,2]
[372947071,1752817835881,-460.0,0.00016438,2]
[372947072,1752817835890,-460.0,0.00016438,2]
[372947073,1752817835901,-460.0,0.00016438,2]
[372947074,1752817835911,-688.63,0.00016438,2]
[372947075,1752817835920,-460.0,0.00016438,2]
[372947076,1752817835930,-460.0,0.00016438,2]
[372947077,1752817835939,-460.0,0.00016438,2]
[372947078,1752817835949,-460.0,0.00016438,2]
[372947079,1752817835958,-460.0,0.00016438,2]
[372947080,1752817835967,-460.0,0.00016438,2]
[372947081,1752817835977,-297.10727728,0.00016438,2]
[372947082,1752817835986,-1356.91,0.00016438,2]
[372947083,1752817835995,-460.0,0.00016438,2]
[372947084,1752817836005,-197.19163939,0.00016438,2]
[372947085,1752817836015,-1968.92,0.00016438,2]
[372947086,1752817836024,-460.0,0.00016438,2]
[372947087,1752817836033,-460.0,0.00016438,2]
[372947088,1752817836043,-460.0,0.00016438,2]
[372947089,1752817836052,-460.0,0.00016438,2]
[372947090,1752817836062,-464.71111948,0.00016438,2]
[372947091,1752817836071,-460.0,0.00016438,2]
[372947092,1752817836081,-768.29,0.00016438,2]
[372947093,1752817836091,-460.0,0.00016438,2]
[372947094,1752817836101,-460.0,0.00016438,2]
[372947095,1752817836110,-460.0,0.00016438,2]
[372947096,1752817836119,-460.0,0.00016438,2]
[372947097,1752817836129,-601.93,0.00016438,2]
[372947098,1752817836138,-460.0,0.00016438,2]
[372947099,1752817836147,-460.0,0.00016438,2]
[372947100,1752817836158,-460.0,0.00016438,2]
[372947101,1752817836167,-460.0,0.00016438,2]
[372947102,1752817836176,-460.0,0.00016438,2]
[372947103,1752817836185,-460.0,0.00016438,2]
[372947104,1752817836195,-1340.21,0.00016438,2]
[372947105,1752817836204,-460.0,0.00016438,2]
[372947106,1752817836214,-460.0,0.00016438,2]
[372947107,1752817836223,-460.0,0.00016438,2]
[372947108,1752817836233,-460.0,0.00016438,2]
[372947109,1752817836242,-460.0,0.00016438,2]
[372947110,1752817836253,-3455.69,0.00016438,2]
[372947111,1752817836262,-460.0,0.00016438,2]
[372947112,1752817836271,-460.0,0.00016438,2]
[372947113,1752817836281,-460.0,0.00016438,2]
[372947114,1752817836290,-460.0,0.00016438,2]
[372947115,1752817836300,-460.0,0.00016438,2]
[372947116,1752817836310,-460.0,0.00016438,2]
[372947117,1752817836319,-460.0,0.00016438,2]
[372947118,1752817836329,-460.0,0.00016438,2]
[372947119,1752817836339,-460.0,0.00016438,2]
[372947120,1752817836348,-460.0,0.00016438,2]
[372947121,1752817836357,-460.0,0.00016438,2]
[372947122,1752817836367,-460.0,0.00016438,2]
[372947123,1752817836377,-460.0,0.00016438,2]
[372947124,1752817836387,-460.0,0.00016438,2]
[372947125,1752817836397,-460.0,0.00016438,2]
[372947126,1752817836408,-460.0,0.00016438,2]
[372947127,1752817836418,-18269.26453697,0.00016438,2]
[372947134,1752817838476,-460.0,0.00016438,2]
[372947135,1752817838486,-460.0,0.00016438,2]
[372947136,1752817838496,-499.27,0.00016438,2]
[372947137,1752817838506,-16621.06108725,0.00016438,2]
[372947138,1752817838515,-500.0,0.00016473,2]
[372947139,1752817838524,-765.94962383,0.00016612,2]
[372947140,1752817838534,-6585.58830415,0.00016612,2]
[372947141,1752817838543,-460.0,0.00016711,2]
[372947142,1752817838553,-460.0,0.00016711,2]
[372947143,1752817838563,-460.0,0.00016711,2]
[372947144,1752817838572,-482.18,0.00016711,2]
[372947145,1752817838582,-460.0,0.00016712,2]
[372947146,1752817838592,-300.35889039,0.00016712,2]
[372947147,1752817838601,-460.0,0.00016712,2]
[372947148,1752817838611,-460.0,0.00016712,2]
[372947149,1752817838620,-460.0,0.00016712,2]
[372947150,1752817838630,-222.8528737,0.00016712,2]
[372947151,1752817838642,-237.1471263,0.00016712,2]
[372947152,1752817838653,-463.38609221,0.00016712,2]
[372947153,1752817838663,-460.0,0.00016712,2]
[372947154,1752817838672,-460.0,0.00016712,2]
[372947155,1752817838682,-460.0,0.00016712,2]
[372947156,1752817838692,-460.0,0.00016712,2]
[372947157,1752817838702,-460.0,0.00016712,2]
[372947158,1752817838712,-460.0,0.00016712,2]
[372947159,1752817838722,-460.0,0.00016712,2]
[372947160,1752817838731,-460.0,0.00016712,2]
[372947161,1752817838741,-460.0,0.00016712,2]
[372947162,1752817838751,-460.0,0.00016712,2]
[372947163,1752817838761,-326.49561731,0.00016712,2]
[372947164,1752817838770,-460.0,0.00016712,2]
[372947165,1752817838779,-460.0,0.00016712,2]
[372947166,1752817838789,-460.0,0.00016712,2]
[372947167,1752817838798,-460.0,0.00016712,2]
[372947168,1752817838807,-460.0,0.00016712,2]
[372947169,1752817838816,-460.0,0.00016712,2]
[372947170,1752817838825,-247.46148167,0.00016712,2]
[372947171,1752817838842,-212.53851833,0.00016712,2]
[372947172,1752817838855,-460.0,0.00016712,2]
[372947173,1752817838864,-460.0,0.00016712,2]
[372947174,1752817838874,-460.0,0.00016712,2]
[372947175,1752817838883,-222.81294709,0.00016712,2]
[372947176,1752817838894,-460.0,0.00016712,2]
[372947177,1752817838905,-460.0,0.00016712,2]
[372947178,1752817838914,-467.38602632,0.00016712,2]
[372947179,1752817838926,-337.8812761,0.00016712,2]
[372947180,1752817838935,-460.0,0.00016712,2]
[372947181,1752817838945,-460.0,0.00016712,2]
[372947182,1752817838954,-460.0,0.00016712,2]
[372947183,1752817838963,-460.0,0.00016712,2]
[372947184,1752817838972,-460.0,0.00016712,2]
[372947185,1752817838982,-460.0,0.00016712,2]
[372947186,1752817838990,-460.0,0.00016712,2]
[372947187,1752817839000,-460.0,0.00016712,2]
[372947188,1752817839010,-460.0,0.00016712,2]
[372947189,1752817839019,-514.77,0.00016712,2]
[372947190,1752817839029,-656.79,0.00016712,2]
[372947191,1752817839038,-460.0,0.00016712,2]
[372947192,1752817839047,-460.0,0.00016712,2]
[372947193,1752817839057,-462.11,0.00016712,2]
[372947194,1752817839066,-460.0,0.00016712,2]
[372947195,1752817839075,-460.0,0.00016712,2]
[372947196,1752817839085,-460.0,0.00016712,2]
[372947197,1752817839094,-460.0,0.00016712,2]
[372947198,1752817839103,-460.0,0.00016712,2]
[372947199,1752817839113,-295.2012992,0.00016712,2]
[372947200,1752817839247,-470.71495773,0.00016712,2]
[372947201,1752817839257,-460.0,0.00016712,2]
[372947202,1752817839267,-460.0,0.00016712,2]
[372947203,1752817839277,-460.0,0.00016712,2]
[372947204,1752817839286,-460.0,0.00016712,2]
[372947205,1752817839295,-460.0,0.00016712,2]
[372947206,1752817839305,-322.96278547,0.00016712,2]
[372947207,1752817839317,-137.03721453,0.00016712,2]
[372947208,1752817839326,-460.0,0.00016712,2]
[372947209,1752817839336,-570.12,0.00016712,2]
[372947210,1752817839346,-460.0,0.00016712,2]
[372947211,1752817839355,-103.6090549,0.00016712,2]
[372947212,1752817839367,-356.3909451,0.00016712,2]
[372947213,1752817839376,-464.76866868,0.00016712,2]
[372947214,1752817839385,-465.51637816,0.00016712,2]
[372947215,1752817839394,-51.18728902,0.00016712,2]
[372947216,1752817839407,-408.81271098,0.00016712,2]
[372947217,1752817839416,-343.739149,0.00016712,2]
[372947218,1752817839427,-29.5205884,0.00016712,2]
[372947219,1752817839437,-460.0,0.00016712,2]
[372947220,1752817839446,-460.0,0.00016712,2]
[372947221,1752817839456,-460.0,0.00016712,2]
[372947222,1752817839465,-460.0,0.00016712,2]
[372947223,1752817839475,-460.0,0.00016712,2]
[372947224,1752817839484,-559.77000321,0.00016712,2]
[372947225,1752817839493,-460.0,0.00016712,2]
[372947226,1752817839503,-199.49605341,0.00016712,2]
[372947227,1752817839512,-723.82243718,0.00016712,2]
[372947228,1752817839523,-1226.78756282,0.00016712,2]
[372947229,1752817839532,-460.0,0.00016712,2]
[372947230,1752817839541,-460.0,0.00016712,2]
[372947231,1752817839551,-460.0,0.00016712,2]
[372947232,1752817839559,-460.0,0.00016712,2]
[372947233,1752817839569,-20.84376178,0.00016712,2]
[372947234,1752817839580,-439.41623822,0.00016712,2]
[372947235,1752817839589,-460.0,0.00016712,2]
[372947236,1752817839599,-530.61,0.00016712,2]
[372947237,1752817839607,-460.0,0.00016712,2]
[372947238,1752817839617,-460.0,0.00016712,2]
[372947239,1752817839638,-234.87797338,0.00016712,2]
[372947240,1752817839651,-225.12202662,0.00016712,2]
[372947241,1752817839662,-824.64,0.00016712,2]
[372947242,1752817839672,-460.0,0.00016712,2]
[372947243,1752817839682,-460.0,0.00016712,2]
[372947244,1752817839692,-460.0,0.00016712,2]
[372947245,1752817839702,-460.0,0.00016712,2]
[372947246,1752817839711,-460.0,0.00016712,2]
[372947247,1752817839721,-460.0,0.00016712,2]
[372947248,1752817839731,-460.0,0.00016712,2]
[372947249,1752817839740,-1341.63797353,0.00016712,2]
[372947250,1752817839753,-68.53202647,0.00016712,2]
[372947251,1752817839762,-460.0,0.00016712,2]
[372947252,1752817839772,-512.66797353,0.00016712,2]
[372947253,1752817839785,-2239.85783011,0.00016712,2]
[372947254,1752817839797,-1.90419636,0.00016712,2]
[372947255,1752817839807,-1156.33,0.00016712,2]
[372947256,1752817839817,-460.0,0.00016712,2]
[372947257,1752817839827,-1786.69,0.00016712,2]
[372947258,1752817839837,-460.0,0.00016712,2]
[372947259,1752817839849,-460.0,0.00016712,2]
[372947260,1752817839859,-460.0,0.00016712,2]
[372947261,1752817839868,-569.17456029,0.00016712,2]
[372947262,1752817839878,-460.0,0.00016712,2]
[372947263,1752817839888,-460.0,0.00016712,2]
[372947264,1752817839898,-460.0,0.00016712,2]
[372947265,1752817839910,-460.0,0.00016712,2]
[372947266,1752817839921,-688.88,0.00016712,2]
[372947267,1752817839931,-460.0,0.00016712,2]
[372947268,1752817839941,-460.0,0.00016712,2]
[372947269,1752817839950,-460.0,0.00016712,2]
[372947270,1752817839960,-479.92,0.00016712,2]
[372947271,1752817839969,-3471.04,0.00016712,2]
[372947272,1752817839979,-460.0,0.00016712,2]
[372947273,1752817839989,-501.1,0.00016712,2]
[372947274,1752817839998,-460.0,0.00016712,2]
[372947275,1752817840008,-473.09,0.00016712,2]
[372947276,1752817840017,-535.73719494,0.00016712,2]
[372947277,1752817840027,-715.09,0.00016712,2]
[372947278,1752817840037,-460.0,0.00016712,2]
[372947279,1752817840047,-773.33,0.00016712,2]
[372947280,1752817840057,-460.0,0.00016712,2]
[372947282,1752817840067,-460.0,0.00016712,2]
[372947283,1752817840076,-2093.69,0.00016712,2]
[372947284,1752817840086,-745.39,0.00016712,2]
[372947285,1752817840096,-460.0,0.00016712,2]
[372947286,1752817840106,-998.27,0.00016712,2]
[372947287,1752817840116,-597.53,0.00016712,2]
[372947288,1752817840126,-460.0,0.00016712,2]
[372947289,1752817840135,-492.36658092,0.00016712,2]
[372947290,1752817840144,-460.0,0.00016712,2]
[372947292,1752817840156,-460.0,0.00016712,2]
[372947294,1752817840166,-460.0,0.00016712,2]
[372947296,1752817840175,-485.11382712,0.00016712,2]
[372947298,1752817840184,-460.0,0.00016712,2]
[372947300,1752817840193,-1220.96,0.00016712,2]
[372947302,1752817840202,-239.90239947,0.00016712,2]
[372947303,1752817840211,-460.0,0.00016712,2]
[372947304,1752817840221,-460.0,0.00016712,2]
[372947305,1752817840230,-460.0,0.00016712,2]
[372947306,1752817840239,-460.0,0.00016712,2]
[372947307,1752817840252,-460.0,0.00016712,2]
[372947308,1752817840262,-460.0,0.00016712,2]
[372947309,1752817840272,-460.0,0.00016712,2]
[372947310,1752817840281,-460.0,0.00016712,2]
[372947311,1752817840290,-460.0,0.00016712,2]
[372947312,1752817840299,-460.0,0.00016712,2]
[372947313,1752817840309,-460.0,0.00016712,2]
[372947314,1752817840318,-269.39049778,0.00016712,2]
[372947315,1752817840328,-460.0,0.00016712,2]
[372947316,1752817840337,-460.0,0.00016712,2]
[372947317,1752817840346,-460.0,0.00016712,2]
[372947318,1752817840356,-688.63,0.00016712,2]
[372947319,1752817840366,-460.0,0.00016712,2]
[372947320,1752817840375,-460.0,0.00016712,2]
[372947321,1752817840384,-512.40420139,0.00016712,2]
[372947322,1752817840394,-1356.91,0.00016712,2]
[372947323,1752817840403,-460.0,0.00016712,2]
[372947324,1752817840414,-1968.92,0.00016712,2]
[372947325,1752817840423,-460.0,0.00016712,2]
[372947326,1752817840432,-460.0,0.00016712,2]
[372947327,1752817840442,-460.0,0.00016712,2]
[372947328,1752817840452,-460.0,0.00016712,2]
[372947329,1752817840462,-460.0,0.00016712,2]
[372947330,1752817840471,-460.0,0.00016712,2]
[372947331,1752817840481,-768.29,0.00016712,2]
[372947332,1752817840490,-460.0,0.00016712,2]
[372947333,1752817840500,-601.93,0.00016712,2]
[372947334,1752817840509,-460.0,0.00016712,2]
[372947335,1752817840519,-460.0,0.00016712,2]
[372947336,1752817840529,-460.0,0.00016712,2]
[372947337,1752817840538,-561.06128202,0.00016712,2]
[372947338,1752817840547,-460.0,0.00016712,2]
[372947339,1752817840558,-1340.21,0.00016712,2]
[372947340,1752817840568,-566.48840558,0.00016712,2]
[372947342,1752817840578,-460.0,0.00016712,2]
[372947344,1752817840587,-362.01764948,0.00016712,2]
[372947345,1752817840597,-3455.69,0.00016712,2]
[372947346,1752817840606,-460.0,0.00016712,2]
[372947347,1752817840616,-460.0,0.00016712,2]
[372947348,1752817840625,-460.0,0.00016712,2]
[372947349,1752817840634,-460.0,0.00016712,2]
[372947350,1752817840643,-460.0,0.00016712,2]
[372947351,1752817840653,-460.0,0.00016712,2]
[372947352,1752817840664,-460.0,0.00016712,2]
[372947353,1752817840674,-460.0,0.00016712,2]
[372947354,1752817840685,-460.0,0.00016712,2]
[372947355,1752817840695,-460.0,0.00016712,2]
[372947356,1752817840704,-460.45065421,0.00016712,2]
[372947358,1752817840723,-499.27,0.00016712,2]
[372947359,1752817840739,-500.0,0.00016773,2]
[372947361,1752817840753,-500.0,0.00016773,2]
[372947363,1752817840767,-503.93358597,0.00016973,2]
[372947365,1752817840782,-501.46377135,0.00016973,2]
[372947367,1752817840793,-502.99859168,0.00016973,2]
[372947368,1752817840804,-500.85686421,0.00016973,2]
[372947370,1752817840818,-501.09296893,0.00016973,2]
[372947372,1752817840830,-500.0,0.00016973,2]
[372947374,1752817840844,-500.0,0.00016973,2]
[372947375,1752817840859,-501.54652161,0.00016973,2]
[372947376,1752817840871,-644.0334221,0.00016973,2]
[372947377,1752817840884,-500.0,0.00016973,2]
[372947378,1752817840897,-500.0,0.00016973,2]
[372947379,1752817840911,-501.26367768,0.00016973,2]
[372947380,1752817840924,-501.33414174,0.00016973,2]
[372947381,1752817840937,-460.0,0.00016985,2]
[372947382,1752817840950,-482.18,0.00016985,2]
[372947383,1752817840962,-460.0,0.00016986,2]
[372947384,1752817840978,-509.49138637,0.00016986,2]
[372947385,1752817841001,-460.0,0.00016986,2]
[372947386,1752817841018,-460.0,0.00016986,2]
[372947387,1752817841030,-460.0,0.00016986,2]
[372947388,1752817841042,-460.0,0.00016986,2]
[372947389,1752817841058,-460.0,0.00016986,2]
[372947390,1752817841080,-460.0,0.00016986,2]
[372947391,1752817841095,-460.0,0.00016986,2]
[372947392,1752817841108,-152.59702087,0.00016986,2]
[372947393,1752817841119,-460.0,0.00016986,2]
[372947394,1752817841129,-460.0,0.00016986,2]
[372947395,1752817841141,-465.99628386,0.00016986,2]
[372947396,1752817841153,-460.0,0.00016986,2]
[372947397,1752817841166,-460.0,0.00016986,2]
[372947398,1752817841180,-460.0,0.00016986,2]
[372947399,1752817841193,-460.0,0.00016986,2]
[372947400,1752817841205,-460.0,0.00016986,2]
[372947401,1752817841217,-460.0,0.00016986,2]
[372947402,1752817841229,-460.0,0.00016986,2]
[372947403,1752817841241,-460.0,0.00016986,2]
[372947404,1752817841254,-460.0,0.00016986,2]
[372947405,1752817841268,-460.0,0.00016986,2]
[372947406,1752817841282,-460.0,0.00016986,2]
[372947407,1752817841294,-460.0,0.00016986,2]
[372947408,1752817841304,-460.0,0.00016986,2]
[372947409,1752817841315,-460.0,0.00016986,2]
[372947410,1752817841325,-514.77,0.00016986,2]
[372947411,1752817841336,-656.79,0.00016986,2]
[372947412,1752817841348,-460.0,0.00016986,2]
[372947413,1752817841360,-462.11,0.00016986,2]
[372947414,1752817841374,-460.0,0.00016986,2]
[372947415,1752817841387,-460.0,0.00016986,2]
[372947416,1752817841399,-460.0,0.00016986,2]
[372947417,1752817841410,-460.0,0.00016986,2]
[372947418,1752817841422,-460.0,0.00016986,2]
[372947419,1752817841433,-460.0,0.00016986,2]
[372947420,1752817841443,-460.0,0.00016986,2]
[372947421,1752817841456,-460.0,0.00016986,2]
[372947422,1752817841468,-460.0,0.00016986,2]
[372947423,1752817841479,-460.0,0.00016986,2]
[372947424,1752817841491,-570.12,0.00016986,2]
[372947425,1752817841501,-460.0,0.00016986,2]
[372947426,1752817841512,-460.0,0.00016986,2]
[372947427,1752817841523,-460.0,0.00016986,2]
[372947428,1752817841534,-460.0,0.00016986,2]
[372947429,1752817841544,-460.0,0.00016986,2]
[372947430,1752817841557,-460.0,0.00016986,2]
[372947431,1752817841568,-460.0,0.00016986,2]
[372947432,1752817841579,-1950.61,0.00016986,2]
[372947433,1752817841609,-470.00240161,0.00016986,2]
[372947434,1752817841623,-460.0,0.00016986,2]
[372947435,1752817841637,-460.0,0.00016986,2]
[372947436,1752817841651,-477.94787217,0.00016986,2]
[372947437,1752817841666,-460.26,0.00016986,2]
[372947438,1752817841680,-460.0,0.00016986,2]
[372947439,1752817841694,-530.61,0.00016986,2]
[372947440,1752817841707,-460.0,0.00016986,2]
[372947441,1752817841719,-460.0,0.00016986,2]
[372947442,1752817841732,-248.47952707,0.00016986,2]
[372947443,1752817841744,-824.64,0.00016986,2]
[372947444,1752817841758,-460.0,0.00016986,2]
[372947445,1752817841771,-460.0,0.00016986,2]
[372947446,1752817841783,-460.0,0.00016986,2]
[372947447,1752817841796,-460.0,0.00016986,2]
[372947448,1752817841808,-1410.17,0.00016986,2]
[372947449,1752817841819,-2754.43,0.00016986,2]
[372947450,1752817841831,-1156.33,0.00016986,2]
[372947451,1752817841844,-345.09533387,0.00016986,2]
[372947452,1752817841861,-1786.69,0.00016986,2]
[372947453,1752817841873,-460.0,0.00016986,2]
[372947454,1752817841884,-460.0,0.00016986,2]
[372947455,1752817841898,-591.82008803,0.00016986,2]
[372947456,1752817841911,-460.0,0.00016986,2]
[372947457,1752817841924,-460.0,0.00016986,2]
[372947458,1752817841936,-460.0,0.00016986,2]
[372947459,1752817841948,-688.88,0.00016986,2]
[372947460,1752817841960,-460.0,0.00016986,2]
[372947461,1752817841972,-460.0,0.00016986,2]
[372947462,1752817841983,-460.0,0.00016986,2]
[372947463,1752817841994,-479.92,0.00016986,2]
[372947464,1752817842005,-3471.04,0.00016986,2]
[372947465,1752817842016,-460.0,0.00016986,2]
[372947466,1752817842028,-501.1,0.00016986,2]
[372947467,1752817842041,-473.09,0.00016986,2]
[372947468,1752817842053,-715.09,0.00016986,2]
[372947469,1752817842065,-460.0,0.00016986,2]
[372947470,1752817842076,-773.33,0.00016986,2]
[372947471,1752817842087,-460.0,0.00016986,2]
[372947472,1752817842098,-460.0,0.00016986,2]
[372947473,1752817842110,-2093.69,0.00016986,2]
[372947474,1752817842121,-745.39,0.00016986,2]
[372947475,1752817842133,-460.0,0.00016986,2]
[372947476,1752817842144,-998.27,0.00016986,2]
[372947477,1752817842155,-460.0,0.00016986,2]
[372947478,1752817842166,-597.53,0.00016986,2]
[372947479,1752817842177,-316.39233764,0.00016986,2]
[372947480,1752817842188,-460.0,0.00016986,2]
[372947481,1752817842200,-1220.96,0.00016986,2]
[372947482,1752817842211,-460.0,0.00016986,2]
[372947483,1752817842223,-460.0,0.00016986,2]
[372947484,1752817842234,-460.0,0.00016986,2]
[372947485,1752817842246,-460.0,0.00016986,2]
[372947486,1752817842258,-460.0,0.00016986,2]
[372947487,1752817842270,-460.0,0.00016986,2]
[372947488,1752817842282,-591.45292689,0.00016986,2]
[372947489,1752817842293,-460.0,0.00016986,2]
[372947490,1752817842303,-460.0,0.00016986,2]
[372947491,1752817842313,-460.0,0.00016986,2]
[372947492,1752817842323,-460.0,0.00016986,2]
[372947493,1752817842333,-460.0,0.00016986,2]
[372947494,1752817842343,-460.0,0.00016986,2]
[372947495,1752817842352,-688.63,0.00016986,2]
[372947496,1752817842363,-460.0,0.00016986,2]
[372947497,1752817842374,-465.13418068,0.00016986,2]
[372947498,1752817842385,-1356.91,0.00016986,2]
[372947499,1752817842394,-460.0,0.00016986,2]
[372947500,1752817842404,-1968.92,0.00016986,2]
[372947501,1752817842414,-460.0,0.00016986,2]
[372947502,1752817842424,-460.0,0.00016986,2]
[372947503,1752817842434,-460.0,0.00016986,2]
[372947504,1752817842444,-768.29,0.00016986,2]
[372947505,1752817842454,-460.0,0.00016986,2]
[372947506,1752817842465,-601.93,0.00016986,2]
[372947507,1752817842475,-460.0,0.00016986,2]